fUSD/lending_fUSD_20241119
["ID","MTS","AMOUNT","RATE_DAILY","PERIOD"]
[342663254,1732027906422,-869.05,0.000395,120]
[342663255,1732027906431,-2000.0,0.000395,120]
[342663256,1732027906441,-181.111913,0.00039598,120]
[342663257,1732027906450,-30992.0,0.000396,120]
[342663258,1732027906616,-150.0,0.00039604,7]
[342663259,1732027906626,-447.48640307,0.00039626,7]
[342663260,1732027906636,-160.20028232,0.00039626,7]
[342663261,1732027906646,-195.78455287,0.00039626,7]
[342663262,1732027906656,-150.0,0.00039641,7]
[342663263,1732027906665,-347.08317,0.00039688,7]
[342663264,1732027906675,-181.111913,0.00039698,120]
[342663265,1732027906685,-3404.00789634,0.000397,2]
[342663266,1732027906694,-4125.24,0.00039726,67]
[342663267,1732027906704,-181.111913,0.00039798,120]
[342663268,1732027906713,-2000.0,0.000398,30]
[342663269,1732027906722,-548.05198355,0.000398,120]
[342663270,1732027906732,-516.38,0.000398,120]
[342663271,1732027906742,-559544.92313862,0.000398,120]
[342663272,1732027906751,-2005.0,0.000398,30]
[342663273,1732027906760,-1312.29246192,0.0003988,45]
[342663274,1732027906770,-235.99693792,0.00039881,45]
[342663275,1732027906779,-251.68249885,0.00039881,45]
[342663276,1732027906789,-1682.38307786,0.00039882,45]
[342663277,1732027906800,-1312.29246192,0.00039882,45]
[342663278,1732027906810,-96749.30002936,0.00039883,45]
[342663279,1732027906819,-200.0,0.00039885,45]
[342663280,1732027906829,-417.0,0.00039886,60]
[342663281,1732027906838,-1065.38307647,0.00039886,45]
[342663282,1732027906848,-200.0,0.00039889,45]
[342663283,1732027906857,-257.0604028,0.0003989,45]
[342663284,1732027906866,-1312.29246192,0.0003989,45]
[342663285,1732027906875,-1312.29246192,0.0003989,45]
[342663286,1732027906884,-200.0,0.0003989,45]
[342663287,1732027906893,-1312.29246192,0.00039893,45]
[342663288,1732027906902,-200.0,0.00039894,45]
[342663289,1732027906911,-200.0,0.00039894,45]
[342663290,1732027906920,-257.0604028,0.00039896,45]
[342663291,1732027906930,-1471.22186172,0.00039897,45]
[342663292,1732027906939,-200.0,0.00039898,45]
[342663293,1732027906949,-2452.21019158,0.00039898,44]
[342663294,1732027906959,-181.111913,0.00039898,120]
[342663295,1732027906968,-257.0604028,0.00039901,45]
[342663296,1732027906977,-200.0,0.00039902,45]
[342663297,1732027906987,-973.92265725,0.00039902,45]
[342663298,1732027906996,-200.0,0.00039905,45]
[342663299,1732027907005,-257.0604028,0.00039905,45]
[342663300,1732027907016,-217.42076276,0.00039906,45]
[342663301,1732027907025,-10223.7319107,0.00039906,45]
[342663302,1732027907035,-1471.22186172,0.00039912,45]
[342663303,1732027907047,-200.0,0.00039912,45]
[342663304,1732027907056,-1682.38307786,0.00039912,45]
[342663305,1732027907065,-200.0,0.00039912,45]
[342663306,1732027907074,-251.68249885,0.00039913,45]
[342663307,1732027907084,-96749.30002936,0.00039913,45]
[342663308,1732027907093,-1557.8,0.00039914,120]
[342663309,1732027907102,-1065.38307647,0.00039915,45]
[342663310,1732027907111,-235.99693792,0.00039917,45]
[342663311,1732027907120,-257.0604028,0.00039919,45]
[342663312,1732027907129,-1361.15906939,0.00039919,45]
[342663313,1732027907138,-447.48640307,0.0003992,7]
[342663314,1732027907148,-160.20028232,0.0003992,7]
[342663315,1732027907157,-195.78455287,0.0003992,7]
[342663316,1732027907167,-10223.7319107,0.00039922,45]
[342663317,1732027907176,-10223.7319107,0.00039925,45]
[342663318,1732027907186,-251.68249885,0.00039925,45]
[342663319,1732027907196,-200.0,0.00039926,45]
[342663320,1732027907205,-200.0,0.00039926,45]
[342663321,1732027907215,-200.0,0.00039927,45]
[342663322,1732027907225,-200.0,0.0003993,45]
[342663323,1732027907235,-200.0,0.0003993,45]
[342663324,1732027907244,-251.68249885,0.00039931,45]
[342663325,1732027907254,-12000.0,0.00039931,8]
[342663326,1732027907263,-200.0,0.00039931,45]
[342663327,1732027907273,-235.99693792,0.00039931,45]
[342663328,1732027907282,-150.0,0.00039932,120]
[342663329,1732027907295,-200.0,0.00039935,45]
[342663330,1732027907305,-1065.38307647,0.00039935,45]
[342663331,1732027907315,-251.68249885,0.00039936,45]
[342663332,1732027907324,-235.99693792,0.00039937,45]
[342663333,1732027907333,-200.0,0.00039938,45]
[342663334,1732027907344,-1312.29246192,0.00039939,45]
[342663335,1732027907354,-973.92265725,0.0003994,45]
[342663336,1732027907363,-1065.38307647,0.00039941,45]
[342663337,1732027907372,-1471.22186172,0.00039941,45]
[342663338,1732027907382,-1361.15906939,0.00039941,45]
[342663339,1732027907392,-251.68249885,0.00039942,45]
[342663340,1732027907401,-217.42076276,0.00039944,45]
[342663341,1732027907411,-217.42076276,0.00039944,45]
[342663342,1732027907421,-1000.0,0.00039945,120]
[342663343,1732027907430,-1361.15906939,0.00039945,45]
[342663344,1732027907439,-10223.7319107,0.00039947,45]
[342663345,1732027907448,-1682.38307786,0.00039948,45]
[342663346,1732027907458,-973.92265725,0.00039948,45]
[342663347,1732027907467,-200.0,0.00039949,45]
[342663348,1732027907476,-1471.22186172,0.0003995,45]
[342663349,1732027907485,-1361.15906939,0.00039951,45]
[342663350,1732027907495,-200.0,0.00039955,45]
[342663351,1732027907505,-973.92265725,0.00039955,45]
[342663352,1732027907514,-257.0604028,0.00039955,45]
[342663353,1732027907523,-96749.30002936,0.00039956,45]
[342663354,1732027907532,-96749.30002936,0.00039958,45]
[342663355,1732027907544,-10223.7319107,0.00039962,45]
[342663356,1732027907554,-235.99693792,0.00039962,45]
[342663357,1732027907563,-1361.15906939,0.00039962,45]
[342663358,1732027907572,-10223.7319107,0.00039963,45]
[342663359,1732027907581,-350.3582702,0.00039964,120]
[342663360,1732027907590,-1065.38307647,0.00039964,45]
[342663361,1732027907599,-40267.97714981,0.00039967,45]
[342663362,1732027907963,-279.892,0.0001,2]
[342663363,1732027907973,-687.68716794,0.000107,2]
[342663364,1732027907985,-280.21283206,0.000107,2]
[342663365,1732027907994,-1880.32,0.00010959,2]
[342663366,1732027908004,-150.0,0.00013,2]
[342663367,1732027908014,-500.0,0.00013699,2]
[342663368,1732027908023,-1000.0,0.00014247,2]
[342663369,1732027908034,-427.5,0.00015,2]
[342663370,1732027908046,-427.5,0.00015,2]
[342663371,1732027908056,-427.5,0.00015,2]
[342663372,1732027908065,-6182.104496,0.00015,2]
[342663373,1732027908074,-1500.0,0.00015248,2]
[342663374,1732027908084,-748.22,0.00016438,2]
[342663375,1732027908093,-748.22,0.00016438,2]
[342663376,1732027908103,-748.22,0.00016438,2]
[342663377,1732027908112,-748.22,0.00016438,2]
[342663378,1732027908122,-748.22,0.00016438,2]
[342663379,1732027908131,-748.22,0.00016438,2]
[342663380,1732027908140,-748.22,0.00016438,2]
[342663381,1732027908149,-748.22,0.00016438,2]
[342663382,1732027908158,-748.22,0.00016438,2]
[342663383,1732027908167,-882.14901129,0.00016546,2]
[342663384,1732027908181,-765.732,0.00021356,15]
[342663385,1732027908191,-300.0,0.00021425,2]
[342663386,1732027908200,-985.89,0.00021917,2]
[342663387,1732027908209,-986.03730272,0.00021917,2]
[342663388,1732027908218,-322.42,0.00038531,2]
[342663389,1732027908227,-56481.32287955,0.00039967,45]
[342663390,1732027908237,-200.0,0.00039967,45]
[342663391,1732027908246,-973.92265725,0.00039972,45]
[342663392,1732027908256,-1471.22186172,0.00039973,45]
[342663393,1732027908265,-200.0,0.00039975,45]
[342663394,1732027908274,-2000.0,0.00039977,120]
[342663395,1732027908283,-1682.38307786,0.00039978,45]
[342663396,1732027908293,-973.92265725,0.00039978,45]
[342663397,1732027908302,-1471.22186172,0.00039979,45]
[342663398,1732027908311,-1682.38307786,0.0003998,45]
[342663399,1732027908320,-200.0,0.0003998,45]
[342663400,1732027908330,-1682.38307786,0.00039981,45]
[342663401,1732027908339,-1361.15906939,0.00039983,45]
[342663402,1732027908351,-217.42076276,0.00039983,45]
[342663403,1732027908361,-200.0,0.00039985,45]
[342663404,1732027908369,-217.42076276,0.00039985,45]
[342663405,1732027908380,-200.0,0.00039985,45]
[342663406,1732027908391,-235.99693792,0.00039986,45]
[342663407,1732027908400,-417.0,0.00039986,60]
[342663408,1732027908410,-1065.38307647,0.00039986,45]
[342663409,1732027908419,-200.0,0.00039987,45]
[342663410,1732027908430,-73385.71204716,0.00039987,45]
[342663411,1732027908442,-23363.5879822,0.00039987,45]
[342663412,1732027908451,-200.0,0.00039989,45]
[342663413,1732027908461,-1355.44645046,0.0003999,120]
[342663414,1732027908470,-217.42076276,0.00039991,45]
[342663415,1732027908480,-200.0,0.00039996,45]
[342663416,1732027908489,-181.111913,0.00039998,120]
[342663417,1732027908499,-13482.43289158,0.00039999,10]
[342663418,1732027908511,-82909.44893889,0.00039999,10]
[342663419,1732027908521,-50000.0,0.0004,30]
[342663420,1732027908530,-50000.0,0.0004,40]
[342663421,1732027908539,-399.88048788,0.0004,7]
[342663422,1732027908551,-926.07089827,0.0004,7]
[342663423,1732027908560,-209.70282744,0.0004,2]
[342663424,1732027908569,-1280.29853663,0.0004,7]
[342663425,1732027908586,-748.22,0.00016438,2]
[342663426,1732027908595,-3669.53,0.0004,7]
[342663427,1732027908607,-135959.9262325,0.0004,7]
[342663428,1732027908616,-944.06090728,0.0004,20]
[342663429,1732027908626,-2343.08552329,0.0004,2]
[342663430,1732027908639,-1104.75091264,0.0004,2]
[342663435,1732028485208,500.0,0.0002,60]
[342663437,1732028583318,264.67,8.219e-05,2]
[342663438,1732028630185,150.0,8.2e-05,10]
[342663439,1732028630208,280.0,8.2e-05,10]
[342663440,1732028630232,920.0,8.2e-05,10]
[342663444,1732028950126,-195.38,8.651e-05,2]
[342663445,1732028950147,-250.0,8.651e-05,2]
[342663446,1732028950168,-239.51,8.742e-05,2]
[342663447,1732028950188,-2230.75099174,8.769e-05,2]
[342663455,1732029031698,-8949.50797892,8.7e-05,2]
[342663456,1732029031710,-909.3594811,8.7e-05,2]
[342663457,1732029031721,-1209.496,8.7e-05,2]
[342663458,1732029031773,-300.0,8.7e-05,2]
[342663459,1732029031786,-1985.8225657,8.7e-05,2]
[342663460,1732029031797,-513.38219973,8.7e-05,2]
[342663461,1732029031849,-10032.43177455,8.7e-05,2]
[342663462,1732029031859,-563.32,8.755e-05,2]
[342663463,1732029031868,-15817.04900826,8.769e-05,2]
[342663464,1732029031877,-5807.54322175,8.813e-05,2]
[342663465,1732029031887,-303.67,8.813e-05,2]
[342663466,1732029031896,-156.59,8.845e-05,2]
[342663467,1732029031905,-316.22,8.877e-05,2]
[342663468,1732029031914,-925.61,8.915e-05,2]
[342663469,1732029031923,-1000.0,8.915e-05,2]
[342663470,1732029031933,-250.0,8.941e-05,2]
[342663471,1732029031943,-312.81,9.028e-05,2]
[342663472,1732029031952,-250.0,9.186e-05,2]
[342663473,1732029031962,-864.5914,9.187e-05,2]
[342663474,1732029031971,-500.0,9.263e-05,2]
[342663475,1732029031981,-12171.97439388,9.277e-05,2]
[342663476,1732029031990,-150.0,9.286e-05,2]
[342663477,1732029031999,-431.09152632,9.287e-05,2]
[342663478,1732029032013,-15331.16407368,9.287e-05,2]
[342663479,1732029032023,-90122.8598,9.287e-05,2]
[342663480,1732029032032,-245.263608,9.458e-05,2]
[342663481,1732029032042,-663.0,9.605e-05,2]
[342663482,1732029032052,-150.0,9.622e-05,2]
[342663483,1732029032061,-2000.0,9.715e-05,2]
[342663484,1732029032071,-161.9788,9.763e-05,2]
[342663485,1732029032080,-1000.0,9.763e-05,2]
[342663486,1732029032090,-2500.0,9.763e-05,2]
[342663487,1732029032099,-4525.67,9.788e-05,2]
[342663488,1732029032109,-239.51,9.835e-05,2]
[342663489,1732029032118,-500.0,9.863e-05,2]
[342663490,1732029032128,-500.0,9.863e-05,2]
[342663491,1732029032137,-500.0,9.863e-05,2]
[342663492,1732029032146,-413.538035,9.863e-05,2]
[342663493,1732029032158,-500.0,9.863e-05,2]
[342663494,1732029032169,-500.0,9.863e-05,2]
[342663495,1732029032183,-500.0,9.863e-05,2]
[342663496,1732029032193,-500.0,9.863e-05,2]
[342663497,1732029032207,-500.0,9.863e-05,2]
[342663498,1732029032216,-500.0,9.863e-05,2]
[342663499,1732029032226,-500.0,9.863e-05,2]
[342663500,1732029032236,-500.0,9.863e-05,2]
[342663501,1732029032246,-500.0,9.863e-05,2]
[342663503,1732029032255,-500.0,9.863e-05,2]
[342663505,1732029032267,-500.0,9.863e-05,2]
[342663507,1732029032276,-500.0,9.863e-05,2]
[342663509,1732029032285,-500.0,9.863e-05,2]
[342663510,1732029032294,-355.13753323,9.863e-05,2]
[342663511,1732029032303,-500.0,9.863e-05,2]
[342663512,1732029032312,-447.38,9.863e-05,2]
[342663514,1732029032321,-500.0,9.863e-05,2]
[342663516,1732029032331,-500.0,9.863e-05,2]
[342663518,1732029032340,-500.0,9.863e-05,2]
[342663520,1732029032349,-500.0,9.863e-05,2]
[342663522,1732029032358,-500.0,9.863e-05,2]
[342663524,1732029032367,-500.0,9.863e-05,2]
[342663526,1732029032375,-501.47018912,9.863e-05,2]
[342663528,1732029032385,-500.0,9.863e-05,2]
[342663530,1732029032394,-500.0,9.863e-05,7]
[342663532,1732029032402,-500.0,9.863e-05,7]
[342663534,1732029032411,-500.0,9.863e-05,7]
[342663535,1732029032420,-500.0,9.863e-05,2]
[342663537,1732029032429,-500.0,9.863e-05,2]
[342663539,1732029032439,-500.0,9.863e-05,2]
[342663541,1732029032448,-500.0,9.863e-05,2]
[342663543,1732029032457,-500.0,9.863e-05,2]
[342663545,1732029032466,-500.0,9.863e-05,2]
[342663547,1732029032475,-500.0,9.863e-05,2]
[342663549,1732029032484,-500.0,9.863e-05,2]
[342663551,1732029032494,-500.0,9.863e-05,2]
[342663553,1732029032503,-500.0,9.863e-05,2]
[342663555,1732029032512,-500.0,9.863e-05,2]
[342663557,1732029032521,-500.0,9.863e-05,2]
[342663559,1732029032531,-500.0,9.863e-05,2]
[342663561,1732029032540,-287.89008141,9.863e-05,2]
[342663563,1732029032550,-500.0,9.863e-05,2]
[342663565,1732029032559,-500.0,9.863e-05,2]
[342663567,1732029032569,-500.0,9.863e-05,2]
[342663569,1732029032578,-500.0,9.863e-05,2]
[342663571,1732029032587,-500.0,9.863e-05,2]
[342663573,1732029032596,-500.0,9.863e-05,2]
[342663575,1732029032606,-500.0,9.863e-05,2]
[342663577,1732029032615,-500.0,9.863e-05,2]
[342663579,1732029032625,-500.0,9.863e-05,2]
[342663581,1732029032634,-500.0,9.863e-05,2]
[342663583,1732029032643,-217.96247949,9.863e-05,2]
[342663585,1732029032652,-500.0,9.863e-05,2]
[342663587,1732029032662,-500.0,9.863e-05,2]
[342663589,1732029032671,-500.0,9.863e-05,2]
[342663591,1732029032680,-500.0,9.863e-05,2]
[342663593,1732029032690,-500.0,9.863e-05,2]
[342663595,1732029032699,-500.0,9.863e-05,2]
[342663597,1732029032708,-500.0,9.863e-05,2]
[342663599,1732029032718,-490.82755504,9.863e-05,2]
[342663601,1732029032726,-500.0,9.863e-05,2]
[342663603,1732029032737,-500.0,9.863e-05,2]
[342663604,1732029032748,-500.0,9.863e-05,2]
[342663606,1732029032757,-500.0,9.863e-05,2]
[342663608,1732029032768,-500.0,9.863e-05,2]
[342663610,1732029032777,-500.0,9.863e-05,2]
[342663612,1732029032787,-500.0,9.863e-05,2]
[342663614,1732029032797,-500.0,9.863e-05,2]
[342663616,1732029032806,-500.0,9.863e-05,2]
[342663618,1732029032817,-344.09,9.863e-05,2]
[342663620,1732029032826,-500.0,9.863e-05,2]
[342663622,1732029032836,-505.93672113,9.863e-05,2]
[342663623,1732029032845,-500.0,9.863e-05,2]
[342663624,1732029032854,-500.0,9.863e-05,2]
[342663625,1732029032864,-534.68206167,9.863e-05,2]
[342663626,1732029032873,-580.05196424,9.863e-05,2]
[342663627,1732029032882,-500.0,9.863e-05,2]
[342663628,1732029032893,-500.0,9.863e-05,2]
[342663629,1732029032902,-500.0,9.863e-05,2]
[342663630,1732029032912,-500.0,9.863e-05,2]
[342663631,1732029032921,-500.0,9.863e-05,2]
[342663632,1732029032930,-500.0,9.863e-05,2]
[342663633,1732029032939,-500.0,9.863e-05,2]
[342663634,1732029032950,-400.0,9.863e-05,2]
[342663635,1732029032960,-500.0,9.863e-05,2]
[342663636,1732029032970,-500.0,9.863e-05,2]
[342663637,1732029032979,-500.0,9.863e-05,2]
[342663638,1732029032991,-500.0,9.863e-05,2]
[342663639,1732029033000,-500.0,9.863e-05,2]
[342663640,1732029033010,-500.0,9.863e-05,2]
[342663641,1732029033020,-500.0,9.863e-05,2]
[342663642,1732029033029,-500.0,9.863e-05,2]
[342663643,1732029033040,-500.0,9.863e-05,2]
[342663644,1732029033049,-448.13,9.863e-05,2]
[342663645,1732029033059,-500.0,9.863e-05,2]
[342663646,1732029033069,-500.0,9.863e-05,2]
[342663647,1732029033078,-500.0,9.863e-05,2]
[342663648,1732029033088,-500.81079713,9.863e-05,2]
[342663649,1732029033097,-500.0,9.863e-05,2]
[342663650,1732029033107,-500.0,9.863e-05,2]
[342663651,1732029033116,-500.0,9.863e-05,2]
[342663652,1732029033126,-500.0,9.863e-05,2]
[342663653,1732029033135,-500.0,9.863e-05,2]
[342663654,1732029033144,-500.0,9.863e-05,2]
[342663655,1732029033153,-529.92915608,9.863e-05,2]
[342663656,1732029033163,-500.0,9.863e-05,2]
[342663657,1732029033172,-500.0,9.863e-05,2]
[342663658,1732029033181,-500.0,9.863e-05,2]
[342663659,1732029033190,-500.0,9.863e-05,2]
[342663660,1732029033200,-500.0,9.863e-05,2]
[342663661,1732029033210,-500.0,9.863e-05,2]
[342663662,1732029033219,-500.0,9.863e-05,2]
[342663663,1732029033229,-500.0,9.863e-05,2]
[342663664,1732029033238,-500.0,9.863e-05,2]
[342663665,1732029033247,-427.18814759,9.863e-05,2]
[342663666,1732029033257,-500.0,9.863e-05,2]
[342663667,1732029033268,-500.0,9.863e-05,2]
[342663668,1732029033277,-500.0,9.863e-05,2]
[342663669,1732029033286,-500.0,9.863e-05,2]
[342663670,1732029033296,-500.0,9.863e-05,2]
[342663671,1732029033305,-446.3,9.863e-05,2]
[342663672,1732029033315,-562.80719078,9.863e-05,2]
[342663673,1732029033325,-500.0,9.863e-05,2]
[342663674,1732029033334,-455.88801859,9.863e-05,2]
[342663675,1732029033343,-500.0,9.863e-05,2]
[342663676,1732029033352,-500.0,9.863e-05,2]
[342663677,1732029033361,-500.0,9.863e-05,2]
[342663678,1732029033371,-500.0,9.863e-05,2]
[342663679,1732029033380,-500.0,9.863e-05,2]
[342663680,1732029033389,-500.0,9.863e-05,2]
[342663681,1732029033398,-205.33,9.863e-05,2]
[342663682,1732029033407,-502.99212814,9.863e-05,2]
[342663683,1732029033416,-500.0,9.863e-05,2]
[342663684,1732029033426,-500.0,9.863e-05,2]
[342663685,1732029033435,-505.82228399,9.863e-05,2]
[342663686,1732029033444,-500.0,9.863e-05,2]
[342663687,1732029033453,-500.0,9.863e-05,2]
[342663688,1732029033461,-500.0,9.863e-05,2]
[342663689,1732029033471,-150.0,9.863e-05,2]
[342663690,1732029033480,-150.0,9.863e-05,2]
[342663691,1732029033489,-439.0461569,9.863e-05,2]
[342663692,1732029033498,-500.0,9.863e-05,2]
[342663693,1732029033507,-500.0,9.863e-05,2]
[342663694,1732029033518,-194.22000967,9.863e-05,2]
[342663695,1732029033528,-500.0,9.863e-05,2]
[342663696,1732029033537,-500.0,9.863e-05,2]
[342663697,1732029033546,-500.0,9.863e-05,2]
[342663698,1732029033555,-500.0,9.863e-05,2]
[342663699,1732029033564,-500.0,9.863e-05,2]
[342663700,1732029033573,-500.0,9.863e-05,2]
[342663701,1732029033582,-500.0,9.863e-05,2]
[342663702,1732029033591,-500.0,9.863e-05,2]
[342663703,1732029033600,-500.0,9.863e-05,2]
[342663704,1732029033609,-500.0,9.863e-05,2]
[342663705,1732029033618,-500.0,9.863e-05,2]
[342663706,1732029033627,-500.0,9.863e-05,2]
[342663707,1732029033635,-500.0,9.863e-05,2]
[342663708,1732029033645,-500.0,9.863e-05,2]
[342663709,1732029033654,-500.0,9.863e-05,2]
[342663710,1732029033664,-539.66764085,9.863e-05,2]
[342663711,1732029033673,-500.0,9.863e-05,2]
[342663712,1732029033682,-500.0,9.863e-05,2]
[342663713,1732029033691,-500.0,9.863e-05,2]
[342663714,1732029033701,-500.0,9.863e-05,2]
[342663715,1732029033710,-501.32885526,9.863e-05,2]
[342663716,1732029033719,-500.0,9.863e-05,2]
[342663717,1732029033728,-500.0,9.863e-05,2]
[342663718,1732029033740,-500.0,9.863e-05,2]
[342663719,1732029033749,-500.0,9.863e-05,2]
[342663720,1732029033758,-500.0,9.863e-05,2]
[342663721,1732029033769,-500.0,9.863e-05,2]
[342663722,1732029033779,-500.0,9.863e-05,2]
[342663723,1732029033788,-500.0,9.863e-05,2]
[342663724,1732029033797,-500.0,9.863e-05,2]
[342663725,1732029033808,-456.54467828,9.863e-05,2]
[342663726,1732029033824,-43.45532172,9.863e-05,2]
[342663727,1732029033833,-500.0,9.863e-05,2]
[342663728,1732029033843,-500.0,9.863e-05,2]
[342663729,1732029033852,-500.0,9.863e-05,2]
[342663730,1732029033861,-500.0,9.863e-05,2]
[342663731,1732029033870,-500.0,9.863e-05,2]
[342663732,1732029033879,-350.03,9.863e-05,2]
[342663733,1732029033888,-500.0,9.863e-05,2]
[342663734,1732029033899,-500.0,9.863e-05,2]
[342663735,1732029033908,-506.60350371,9.863e-05,2]
[342663736,1732029033918,-500.0,9.863e-05,2]
[342663737,1732029033927,-500.0,9.863e-05,2]
[342663738,1732029033937,-500.0,9.863e-05,2]
[342663739,1732029033946,-500.0,9.863e-05,2]
[342663740,1732029033956,-500.0,9.863e-05,2]
[342663741,1732029033966,-500.0,9.863e-05,2]
[342663742,1732029033975,-500.0,9.863e-05,2]
[342663743,1732029033984,-321.22,9.863e-05,2]
[342663744,1732029033994,-500.0,9.863e-05,2]
[342663745,1732029034005,-500.0,9.863e-05,2]
[342663746,1732029034017,-500.0,9.863e-05,2]
[342663747,1732029034026,-500.0,9.863e-05,2]
[342663748,1732029034036,-500.0,9.863e-05,2]
[342663749,1732029034045,-500.0,9.863e-05,2]
[342663750,1732029034054,-500.0,9.863e-05,2]
[342663751,1732029034064,-500.0,9.863e-05,2]
[342663752,1732029034073,-230.13514197,9.863e-05,2]
[342663753,1732029034083,-500.0,9.863e-05,2]
[342663754,1732029034092,-500.0,9.863e-05,2]
[342663755,1732029034102,-500.0,9.863e-05,2]
[342663756,1732029034111,-500.0,9.863e-05,2]
[342663757,1732029034120,-500.0,9.863e-05,2]
[342663758,1732029034131,-500.0,9.863e-05,2]
[342663759,1732029034140,-500.0,9.863e-05,2]
[342663760,1732029034149,-500.0,9.863e-05,2]
[342663761,1732029034159,-500.0,9.863e-05,2]
[342663762,1732029034168,-500.0,9.863e-05,2]
[342663763,1732029034179,-500.0,9.863e-05,2]
[342663764,1732029034188,-500.0,9.863e-05,2]
[342663765,1732029034197,-500.0,9.863e-05,2]
[342663766,1732029034207,-500.0,9.863e-05,2]
[342663767,1732029034216,-500.0,9.863e-05,2]
[342663768,1732029034225,-500.0,9.863e-05,2]
[342663769,1732029034235,-500.0,9.863e-05,2]
[342663770,1732029034243,-500.0,9.863e-05,2]
[342663771,1732029034253,-500.0,9.863e-05,2]
[342663772,1732029034263,-500.0,9.863e-05,2]
[342663773,1732029034275,-500.0,9.863e-05,2]
[342663774,1732029034284,-500.0,9.863e-05,2]
[342663775,1732029034294,-661.48,9.863e-05,2]
[342663776,1732029034303,-500.0,9.863e-05,2]
[342663777,1732029034313,-500.0,9.863e-05,2]
[342663778,1732029034323,-500.0,9.863e-05,2]
[342663779,1732029034331,-500.0,9.863e-05,2]
[342663780,1732029034340,-500.0,9.863e-05,2]
[342663781,1732029034350,-500.0,9.863e-05,2]
[342663782,1732029034359,-500.0,9.863e-05,2]
[342663783,1732029034368,-500.0,9.863e-05,2]
[342663784,1732029034377,-500.0,9.863e-05,2]
[342663785,1732029034386,-500.0,9.863e-05,2]
[342663786,1732029034395,-500.0,9.863e-05,2]
[342663787,1732029034404,-500.0,9.863e-05,2]
[342663788,1732029034413,-500.0,9.863e-05,2]
[342663789,1732029034423,-500.0,9.863e-05,2]
[342663790,1732029034432,-500.0,9.863e-05,2]
[342663791,1732029034441,-500.0,9.863e-05,2]
[342663792,1732029034451,-500.0,9.863e-05,2]
[342663793,1732029034460,-500.0,9.863e-05,2]
[342663794,1732029034469,-500.0,9.863e-05,2]
[342663795,1732029034478,-500.0,9.863e-05,2]
[342663796,1732029034489,-500.0,9.863e-05,2]
[342663797,1732029034672,-2201.0,9.863e-05,2]
[342663798,1732029034682,-413.538035,9.875e-05,2]
[342663799,1732029034691,-413.538035,9.875e-05,2]
[342663800,1732029034701,-770.39,9.888e-05,2]
[342663801,1732029034710,-500.0,9.888e-05,2]
[342663802,1732029034720,-500.0,9.888e-05,2]
[342663803,1732029034729,-500.0,9.888e-05,2]
[342663804,1732029034742,-150.0,9.888e-05,2]
[342663805,1732029034752,-500.0,9.888e-05,2]
[342663806,1732029034761,-500.0,9.888e-05,2]
[342663807,1732029034774,-636.75402308,9.888e-05,2]
[342663808,1732029034785,-500.0,9.888e-05,2]
[342663809,1732029034795,-500.0,9.888e-05,2]
[342663810,1732029034804,-179.1,9.888e-05,2]
[342663811,1732029034816,-522.36,9.888e-05,2]
[342663812,1732029034826,-500.0,9.888e-05,2]
[342663813,1732029034838,-500.0,9.888e-05,2]
[342663814,1732029034849,-500.0,9.888e-05,2]
[342663815,1732029034871,-500.0,9.888e-05,2]
[342663816,1732029034881,-500.0,9.888e-05,2]
[342663817,1732029034891,-1076.93,9.888e-05,2]
[342663818,1732029034900,-500.0,9.888e-05,2]
[342663819,1732029034911,-500.0,9.888e-05,2]
[342663820,1732029034921,-500.0,9.888e-05,2]
[342663821,1732029034930,-500.0,9.888e-05,2]
[342663822,1732029034939,-500.0,9.888e-05,2]
[342663823,1732029034949,-500.0,9.888e-05,2]
[342663824,1732029034958,-500.0,9.888e-05,2]
[342663825,1732029034968,-500.0,9.888e-05,2]
[342663826,1732029034978,-211.86833263,9.888e-05,2]